Cogmind - Beta 13 @@@ ROGUE MODE // 2024.03.31 @ 17:42:22 Player: firstiteration Result: Destroyed by G-34 Mercenary with Small Laser Performance ------------- Evolutions (1) 500 Regions Visited (3) 600 Robots Destroyed (13) 65 Value Destroyed (194) 194 Prototype IDs (1) 20 Alien Tech Used (0) 0 Bonus (25) 25 TOTAL SCORE: 1404 Bonus ------- Follower Combat Kills 25 Cogmind --------- Core Integrity 0/400 Matter 290/300 Energy 100/100 System Corruption 7% Temperature Cool (8) Movement Core (100) Ox1 Location -9/Storage Parts ------- > --- POWER (2) -------- (None) > --- PROPULSION (2) --- (None) > --- UTILITY (3) ------ Small Storage Unit > --- WEAPON (2) ------- (None) > --- INVENTORY (8) ---- (None) Peak State ------------ > --- POWER ------------ Ion Engine Light Ion Engine > --- PROPULSION ------- Light Treads Light Treads > --- UTILITY ---------- Small Storage Unit > --- WEAPON ----------- Improved Medium Laser > --- INVENTORY -------- Light Ion Engine Light Treads Light Treads [Rating: 8] Favorites ----------- Power Light Ion Engine Engine Light Ion Engine Propulsion Aluminum Leg Treads Light Treads Leg Aluminum Leg Hover Unit Improved Hover Unit Utility Small Storage Unit Storage Small Storage Unit Weapon EM Pulse Gun Energy Gun EM Pulse Gun Build | -11 -10 -9 -9 ------- Run | Yrd Mat Mat Sto Slots Evolved 2 | . . 2 . Power 1 | . . 1 . Propulsion . | . . . . Utility 1 | . . 1 . Weapon . | . . . . Parts Attached 18 | 6 . 5 7 Power 4 | 1 . 1 2 Engine 4 | 1 . 1 2 Core . | . . . . Reactor . | . . . . Propulsion 10 | 2 . 4 4 Treads 4 | . . . 4 Leg 4 | 2 . 2 . Wheel . | . . . . Hover 2 | . . 2 . Flight . | . . . . Utility 1 | 1 . . . Device . | . . . . Storage 1 | 1 . . . Processor . | . . . . Hackware . | . . . . Protection . | . . . . Artifact . | . . . . Weapon 3 | 2 . . 1 Energy Gun 3 | 2 . . 1 Energy Cannon . | . . . . Ballistic Gun . | . . . . Ballistic Cannon . | . . . . Launcher . | . . . . Special Weapon . | . . . . Impact Weapon . | . . . . Slashing Weapon . | . . . . Piercing Weapon . | . . . . Special Melee Weapon . | . . . . Unidentified Prototypes 1 | . . . 1 Parts Lost 8 | . 2 . 6 Power 3 | . . . 3 Propulsion 3 | . . . 3 Utility . | . . . . Weapon 2 | . 2 . . Highest Loss Streak 6 | . 1 . 6 To Critical Strikes 1 | . . . 1 Average Slot Usage (%) 70 | . 82 54 50 Engine 16 | . 14 21 19 Treads 2 | . . . 14 Leg 21 | . 28 21 5 Storage 12 | . 14 11 11 Energy Gun 15 | . 25 . . Naked Turns . | . . . . Heaviest Build 13 | 12 12 13 13 Greatest Support 40 | 20 20 20 40 Greatest Overweight (x) 2 | 2 . . . Average Overweight (x) . | . . . . Largest Inventory Capacity 8 | 8 8 8 8 Average Capacity 7 | 7 8 8 8 Most Carried 7 | 5 4 7 7 Average Carried 2 | 1 3 3 2 Final Capacity 8 | 8 8 8 8 Final Carried 4 | 1 4 3 . Class Distribution -------------------- 100% | Mutant Dominant Class ---------------- Mutant | -10/Materials Mutant | -9/Materials Mutant | -9/Storage Resources | -11 -10 -9 -9 ----------- Run | Yrd Mat Mat Sto Matter Collected 340 | 260 . 50 30 Remotely . | . . . . Salvage Created 416 | 83 280 . 53 Parts 24 | 1 21 . 2 Haulers Intercepted . | . . . . Recyclers Shooed 1 | . 1 . . Parts Field Recycled . | . . . . Retrieved Matter . | . . . . Parts Self-Destructed . | . . . . Prevented . | . . . . Kills | -11 -10 -9 -9 ------- Run | Yrd Mat Mat Sto Combat Hostiles Destroyed 7 | . 6 . 1 Guns 7 | . 6 . 1 Classes Destroyed 7 | 1 5 . 1 Builder 2 | . 2 . . Recycler 2 | 1 1 . . Operator 1 | . 1 . . Watcher 1 | . 1 . . Swarmer 5 | . 5 . . Grunt 1 | . 1 . . Brawler 1 | . . . 1 Best Kill Streak 6 | 1 6 . 1 Combat Bots Only 2 | . 2 . 1 Max Kills in Single Turn 2 | 1 2 . 1 Gunslinging . | . . . . Exploded . | . . . . Melee . | . . . . Uniques/NPCs Destroyed . | . . . . Combat | -11 -10 -9 -9 -------- Run | Yrd Mat Mat Sto Hostile Shots Fired 155 | . 57 34 64 Missed 49 | . 24 17 8 Damage Taken 1421 | . 277 138 1006 Core 505 | . 105 24 376 Absorbed by Shields . | . . . . Core Remaining (%) 79 | 100 58 . . Volleys Fired 31 | 4 23 . 4 Largest 2 | 2 2 . 1 Hottest 80 | 80 80 . 56 Shots Fired 54 | 8 42 . 4 Gun 54 | 8 42 . 4 Cannon . | . . . . Launcher . | . . . . Special . | . . . . Kinetic . | . . . . Thermal 4 | . . . 4 Explosive . | . . . . Electromagnetic 50 | 8 42 . . Robot Hit Streak 5 | 5 4 . 3 Robot Miss Streak 4 | 2 4 . 1 Penetration Max . | . . . . Secondary Targets . | . . . . Shots Hit Robots 29 | 6 20 . 3 Core Hits 16 | 2 13 . 1 Critical Kills . | . . . . Critical Parts Destroyed . | . . . . Critical Strikes . | . . . . Melee Attacks . | . . . . Impact . | . . . . Slashing . | . . . . Piercing . | . . . . Sneak Attacks . | . . . . Combat Hostiles . | . . . . Follow-up Attacks . | . . . . Damage Inflicted 499 | 80 370 . 49 Guns 393 | 80 264 . 49 Cannons . | . . . . Explosions 106 | . 106 . . Melee . | . . . . Ramming . | . . . . Kinetic . | . . . . Thermal 155 | . 106 . 49 Explosive . | . . . . Electromagnetic 344 | 80 264 . . Impact . | . . . . Slashing . | . . . . Piercing . | . . . . Highest Corruption 7 | . . . 7 Average Corruption 5 | . . . 5 Corruption Purged . | . . . . Corruption Blocked . | . . . . Effects 1 | . . . 1 Data Loss (major) 1 | . . . 1 Overload Shots . | . . . . Overflow Damage 6 | . 6 . . Projectiles . | . . . . Explosions 6 | . 6 . . Melee . | . . . . Knockbacks . | . . . . Impact . | . . . . Kinetic . | . . . . Secondary . | . . . . Self-Inflicted Damage . | . . . . Shots . | . . . . Rammed . | . . . . Targets Rammed . | . . . . Kicked . | . . . . Crushed . | . . . . Highest Temperature 118 | 72 72 . 118 Average Temperature 34 | 32 27 . 55 Received Heat Transfer 393 | . 30 . 363 Siege Activations . | . . . . Robots Corrupted . | . . . . Combat Hostiles . | . . . . Parts Fried 3 | 1 2 . . Impact Corruptions . | . . . . Robots Melted . | . . . . Combat Hostiles . | . . . . Parts Melted 1 | . 1 . . Heat Transferred 232 | . 150 . 82 Parts Sabotaged . | . . . . Parts Stolen . | . . . . Parts Stripped . | . . . . Power Chain Reactions 2 | . 2 . . Alert | -11 -10 -9 -9 ------- Run | Yrd Mat Mat Sto Peak Influence 289 | 5 289 117 105 Initial 117 | . 3 117 49 Average 97 | 2 119 117 62 Maximum Alert Level 1 | . 1 . . Low Security (%) 92 | 100 85 100 100 Level 1 7 | . 14 . . Level 2 . | . . . . Level 3 . | . . . . Level 4 . | . . . . Level 5 . | . . . . High Security . | . . . . Max Security . | . . . . Squads Dispatched 4 | . 2 . 2 Investigation . | . . . . Extermination . | . . . . Reinforcement 2 | . 2 . . Assault 2 | . . . 2 Garrison . | . . . . Intercept . | . . . . Searches Triggered . | . . . . Construction Impeded . | . . . . Haulers Reinforced . | . . . . Active Scanning Responses . | . . . . Cargo Convoy Interrupts . | . . . . Stealth | -11 -10 -9 -9 --------- Run | Yrd Mat Mat Sto Distress Signals 1 | . . . 1 Communications Jammed . | . . . . Distress Signals . | . . . . Times Spotted 34 | . 16 4 14 Peak Tracking Total 11 | . 6 4 11 Tactical Retreats 2 | . 2 . . Traps | -11 -10 -9 -9 ------- Run | Yrd Mat Mat Sto Traps Triggered . | . . . . Indirectly . | . . . . Trap Hack Attempts . | . . . . Triggered . | . . . . Disarmed . | . . . . Reprogrammed . | . . . . Reused . | . . . . Traps Extracted . | . . . . Installed . | . . . . Triggered . | . . . . Machines | -11 -10 -9 -9 ---------- Run | Yrd Mat Mat Sto Machines Disabled 2 | . 2 . . Max in Single Turn 1 | . 1 . . Machines Repaired . | . . . . Machines Dismantled . | . . . . Machines Sabotaged . | . . . . Overloaded Fab Kills . | . . . . Hacking | -11 -10 -9 -9 --------- Run | Yrd Mat Mat Sto Machines Accessed 4 | . 2 . 2 Terminals 3 | . 2 . 1 Fabricators . | . . . . Repair Stations . | . . . . Recycling Units . | . . . . Scanalyzers . | . . . . Garrison Access 1 | . . . 1 Total Hacks 9 | . 6 . 3 Successful 2 | . 1 . 1 Failed 7 | . 5 . 2 Catastrophic 5 | . 3 . 2 Database Lockouts . | . . . . Manual 2 | . 1 . 1 Terminals 7 | . 6 . 1 Fabricators . | . . . . Repair Stations . | . . . . Recycling Units . | . . . . Scanalyzers . | . . . . Garrison Access 2 | . . . 2 Terminal Hacks 1 | . 1 . . Dispatch Records 1 | . 1 . . Fabricator Hacks . | . . . . Repair Station Hacks . | . . . . Recycling Unit Hacks . | . . . . Scanalyzer . | . . . . Garrison Access Hacks . | . . . . Unauthorized Hacks 1 | . . . 1 Terminals . | . . . . Fabricators . | . . . . Repair Stations . | . . . . Recycling Units . | . . . . Scanalyzers . | . . . . Garrison Access 1 | . . . 1 Watchers 1 | . . . 1 Data Cores Recovered . | . . . . Used . | . . . . Hacking Detections 4 | . 2 . 2 Full Trace Events . | . . . . Feedback Events . | . . . . Feedback Blocked . | . . . . Robot Schematics Acquired . | . . . . Robots Built . | . . . . Authchips . | . . . . Time . | . . . . Total Robot Build Rating . | . . . . Part Schematics Acquired . | . . . . Parts Built . | . . . . Authchips . | . . . . Time . | . . . . Total Part Build Rating . | . . . . Parts Repaired . | . . . . Time . | . . . . Parts Recycled . | . . . . Recycled Matter . | . . . . Retrieved Matter . | . . . . Retrieved Components . | . . . . Parts Scanalyzed . | . . . . Part Schematics Acquired . | . . . . Parts Damaged . | . . . . Bothacking | -11 -10 -9 -9 ------------ Run | Yrd Mat Mat Sto Used RIF Installer . | . . . . Robots Hacked . | . . . . Non-combat . | . . . . Combat . | . . . . Robot Hacks Applied . | . . . . Relay Couplers Released . | . . . . Fabnet Peak Effective % . | . . . . Robots Rewired . | . . . . Allies Hacked . | . . . . Hacks Repelled . | . . . . Allies | -11 -10 -9 -9 -------- Run | Yrd Mat Mat Sto Total Allies 2 | . . . 2 Largest Group 2 | . . . 2 Highest-Rated Group 62 | . . . 62 Highest-Rated Ally 31 | . . . 31 Total Orders . | . . . . Ally Attacks 23 | . . . 23 Total Damage 273 | . . . 273 Kills 3 | . . . 3 Allies Corrupted . | . . . . Allies Melted . | . . . . Intel | -11 -10 -9 -9 ------- Run | Yrd Mat Mat Sto Robot Analysis Total . | . . . . Derelict Logs Recovered . | . . . . Drone Launches . | . . . . Drone Recoveries . | . . . . Exploration | -11 -10 -9 -9 ------------- Run | Yrd Mat Mat Sto Turns Passed 703 | 70 388 119 126 Spaces Moved 468 | 47 267 91 63 Core 18 | 18 . . . Treads 48 | . . . 48 Legs 394 | 29 267 83 15 Wheels . | . . . . Hover 8 | . . 8 . Flight . | . . . . Fastest Speed 50 | 50 120 56 120 Average Speed 120 | 99 120 114 150 Slowest Speed 160 | 150 120 120 160 Overloaded Moves . | . . . . Propulsion Burnouts . | . . . . Robots Hopped . | . . . . Cave-ins Triggered . | . . . . Exploration Rate (%) 14 | 4 37 6 11 Regions Visited 3 Branch Regions 1 Pre-discovered Areas . | . . . . Known Exits Taken . | . . . . Unknown Exits Taken 3 | 1 1 1 . Scrap Searched . | . . . . Spaces Dug . | . . . . Terrain Destroyed 8 | . 8 . . Melee . | . . . . Projectile . | . . . . AOE 8 | . 8 . . Terrain Rammed . | . . . . Walls Destroyed . | . . . . Machines Disabled . | . . . . Actions | -11 -10 -9 -9 --------- Run | Yrd Mat Mat Sto Total 552 | 61 292 107 92 Wait 8 | . . . 8 Move 465 | 46 266 90 63 Hop . | . . . . Pick Up 20 | 5 3 6 6 Fast Attach 2 | 2 . . . Attach 12 | 4 . 1 7 Detach . | . . . . Swap 4 | . . 4 . Drop 10 | . . 6 4 Fire 31 | 4 23 . 4 Melee . | . . . . Ram . | . . . . Kick . | . . . . Crush . | . . . . Escape Stasis . | . . . . Rewire . | . . . . Trap . | . . . . Miscellaneous . | . . . . Route ------- -11/Scrapyard -10/Materials (discovered 2 exits: [*Mat] / [*Min]) -9/Materials -9/Storage History --------- Turn | Location | Event 2 | -11/Scrapyard | Discovered new exit (range 16) 71 | -11/Scrapyard | Entered Materials 256 | -10/Materials | Discovered new exit (range 3) 267 | -10/Materials | Discovered new exit (range 16) 300 | -10/Materials | Build established: Mutant 459 | -10/Materials | Entered another Materials area 459 | -9/Materials | Evolved 2 slots: Power x1, Utility x1 464 | -9/Materials | Discovered new exit (range 16) 578 | -9/Materials | Entered Storage 587 | -9/Storage | Met a pair of Derelict thieves 693 | -9/Storage | Core integrity fell below 50% 702 | -9/Storage | Core integrity fell below 20% 704 | -9/Storage | Destroyed by G-34 Mercenary with Small Laser Last Messages --------------- 00680_ E8-LBG(g) destroyed. 00682_ Critical hit (Smash). 00682_ Ion Engine destroyed. 00682_ System corrupted by crushing effect (+5). 00684_ Lgt. Ion Engine destroyed. 00685_ Lgt. Treads severed. 00686_ B-36 Bruiser destroyed. 00687_ System corrupted: Substantial component data lost. 00688_ Lgt. Ion Engine destroyed. 00688_ Lgt. Treads destroyed. 00690_ Imp. Medium Laser severed. 00691_ Acquired 30 matter. 00692_ Critical hit (Burn: +37). 00694_ Acquired Rnf. Ion Engine. 00699_ Lgt. Treads destroyed. 00699_ System corrupted by crushing effect (+2). 00700_ Lgt. Treads destroyed. 00700_ Critical hit (Burn: +37). 00701_ Rnf. Ion Engine severed. Map ----- +----------------------------------------------------+ | ?????????????????????????????????????????????????? | | ?????????????????????????????????????????????????? | | ?????????????????????????????????????????????????? | | ?????????????????????????????????????????????????? | | ?????????????????????????????????????????????????? | | ?????????????????????????????????????????????????? | | ?????????????????????????????????????????????????? | | ?????????????????????????????????????????????????? | | ?????????????????????????????????????????????????? | | ?????????????????????????????????????????????????? | | ?????????????????????????????????????????????????? | | ?????????????????????????????????????????????????? | | ?????????????????????????????????????????????????? | | ?????????????????????????????????????????????????? | | ?????????????????????????????????????????????????? | | ?????????????????????????????????????????????????? | | ?????????????????????????????????????########????? | | ?????????????????????????????????????#== =#????? | | ?????????????????????????????????????#== = #????? | | ?????????????????????????????????????# ==#????? | | ?????????????????????????????????????# #????? | | ?????????????????????????????????????##" "###????? | | ?????????????????????????????????????# T#?????? | | ???????????????w?????????????????????# ##?????? | | ??????????????# #####################+######???? | | ?????????? b =!%!= @l==[ #???? | | ?????????? g% *!i g=bgg #???? | | ?????????? g = g **% #???? | | ???????????#####+###########+##########+######???? | | ???????????????????????????# #?#### ##???? | | ???????????????????????????" #?#""" """^ """#?? | | ???????????????????????????" #?#"G """ R"#?? | | ???????????????????????????#T##?#""" """ """#?? | | ???????????????????????????###??#### ####?? | | ???????????????????????????????????# """ #????? | | ???????????????????????????????????# """ #????? | | ???????????????????????????????????# """ #????? | | ???????????????????????????????????# #????? | | ???????????????????????????????????########??????? | | ?????????????????????????????????????????????????? | | ?????????????????????????????????????????????????? | | | | | | | | | | | | | | | | | | | +----------------------------------------------------+ Best States ------------- Heat Dissipation 28 Energy Generation 15 Energy Capacity 275 Matter Stores 300 Matter Capacity 300 Sight Range 16 Terrain Scan Density 10 Evasion (%) 55 Recoil Reduction 2 Item Schematics ----------------- None Robot Schematics ------------------ None Fabricated ------------ Nothing Alien Tech Used ----------------- None Achievements -------------- None Challenges ------------ None Game ------ Seed NovaGatlingRefractor Manual? 0 Play Time 00:11:43 Cumulative 6.8 hours Start 2024.03.31 @ 17:32:54 End 2024.03.31 @ 17:42:22 Sessions 1 Manual Loads 0 Difficulty Rogue Special Mode None Game No. 20 Rogue 20 Adventurer 0 Explorer 0 Win Type - Total 0 Types 0/0/0/0/0/0/0/0/0 Lore% 10 Gallery% 11 Achievement% 9 Wizard Run 0 Options --------- Layout 1 ASCII 0 Keyboard 0 Movement Mouse Keybinds 0 Fullscreen 1 Font 24/Smallcaps Map View 50x35 Zoom Use 0% Tactical HUD 1 Map Filters NONE Filters NONE Steam 1 RUN: 875b3571-75ab-489f-be6f-efefd21ade82